[Event "Reykjavik Open 2022"]
[Site "Reykjavik"]
[Date "2022.04.09"]
[Round "5.10"]
[White "Thorfinnsson, Bjorn"]
[Black "Mishra, Abhimanyu"]
[Result "0-1"]
[ECO "E07"]
[WhiteElo "2387"]
[BlackElo "2505"]
[Annotator "TA"]
[PlyCount "95"]
[EventDate "2022.04.06"]
[EventCountry "ISL"]
[SourceTitle "playchess.com"]
[Source "ChessBase"]
[SourceQuality "1"]
[TimeControl "40/5400+30:1800+30"]

{[%evp 15,95,0,13,0,-15,-9,-6,-22,-19,-14,21,12,8,-1,0,0,0,-43,-43,-44,-45,-60,0,-38,6,-36,-19,-50,-18,-37,-46,-44,-40,-41,-41,-36,-37,-44,-39,-39,-29,-33,0,0,0,0,0,-36,-36,-43,-15,-97,-80,-118,-107,-104,-89,-208,-209,-203,-191,-229,-180,-192,-195,-186,-172,-504,-454,-866,-610,-535,-479,-650,-499,-1343,-1334,-1300,-1226,-928,-921,-575]} 1. c4 {[%emt 0:00:04]} c6 {[%emt 0:00:06]} 2. g3 {[%emt 0:00:06]} d5 {[%emt 0:00:08]} 3. Qb3 {[%emt 0:04:28]} Nf6 {[%emt 0:01:51]} 4. Bg2 {[%emt 0:00:18]} e6 {[%emt 0:08:07]} 5. Nf3 {[%emt 0:00:18]} Be7 {[%emt 0:03:40]} 6. O-O {[%emt 0:00:08]} O-O {[%emt 0:00:11]} 7. d4 {[%emt 0:02:14]} Nbd7 {[%emt 0:01:31]} 8. Nc3 {[%emt 0:00:47]} b6 {[%emt 0:03:19] [#]} 9. e4 $146 {[%emt 0:07:47][%cal Rc4d5] E07: Closed Catalan: Main Line (5 Nf3 0-0 6 0-0 Nbd7).} ({Predecessor:} 9. Bf4 Bb7 10. cxd5 cxd5 11. Rfc1 Rc8 12. Nb5 Rxc1+ 13. Rxc1 Qa8 14. Nc7 Qd8 15. Ng5 h6 16. Ngxe6 fxe6 17. Nxe6 Qa8 {1-0 (32) Thybo,J (2513)-Hansen,S (2590) Svendborg 2019}) 9... Ba6 {[%emt 0:12:24]} 10. exd5 {[%emt 0:07:42]} cxd5 {[%emt 0:02:09]} 11. Nd2 {[%emt 0:06:45] The position is equal.} Rc8 {[%emt 0:06:37][%cal Rd5c4]} 12. Nb5 {[%emt 0:02:25]} dxc4 {[%emt 0:05:04]} 13. Nxc4 {[%emt 0:00:17]} Nb8 {[%emt 0:01:39][%cal Bd7b8,Bb8c6,Bc6b4][%mdl 32]} 14. Rd1 {[%emt 0:07:19]} Nc6 {[%emt 0:02:29] [#] Strongly threatening ...Bxb5.} 15. Be3 {[%emt 0:15:23]} Nd5 $36 {[%emt 0:05:11][%mdl 2048] White is under pressure.} 16. Rac1 {[%emt 0:06:57]} (16. Nc3 $5 {[%cal Rc3d5]}) 16... Qd7 {[%emt 0:04:49] aiming for ...Na5.} 17. a4 {[%emt 0:08:34]} Rfd8 {[%emt 0:06:48]} 18. Nc3 {[%emt 0:11:18]} f6 {[%emt 0:07:00]} ({Better is} 18... Nxc3 $15 19. bxc3 Qe8) 19. Nb5 {[%emt 0:05:06]} Ncb4 {[%emt 0:03:21]} 20. Nca3 {[%emt 0:00:28]} Kh8 {[%emt 0:02:22]} 21. Bh3 {[%emt 0:02:10]} f5 {[%emt 0:05:13]} (21... Nxe3 22. Bxe6 Nxd1 23. Rxc8 Rxc8 24. Bxd7 $16) 22. Bd2 {[%emt 0:02:00]} Nc6 {[%emt 0:01:57]} 23. Nc2 {[%emt 0:00:44]} Bb7 {[%emt 0:01:46]} (23... Bf6 {with more complications.} 24. Bg2 Bb7 25. Ne3 Nxd4 26. Nxd4 Bxd4 27. Nxd5 Bxd5 28. Bxd5 Rxc1 29. Rxc1 exd5 30. Rd1 Bf6) 24. Bg2 {[%emt 0:02:12]} Bf6 {[%emt 0:02:08]} 25. Ne3 {[%emt 0:03:25]} Nxd4 {[%emt 0:08:44]} (25... Nxe3 {seems wilder.} 26. Bxe3 Na5 27. Qd3 Bxg2 28. Rxc8 Qxc8 29. Kxg2 a6) 26. Nxd4 {[%emt 0:00:07]} Bxd4 {[%emt 0:00:03]} (26... Rxc1 {is more complex.} 27. Rxc1 Bxd4 28. Nxd5 Bxd5 29. Bxd5 exd5 30. Rd1 Bf6) 27. Nxd5 {[%emt 0:00:41]} Bxd5 {[%emt 0:01:26]} (27... Rxc1 {feels hotter.} 28. Rxc1 Bxd5 29. Bxd5 exd5 30. Rd1 Bf6) 28. Bxd5 {[%emt 0:00:09]} Qxd5 {[%emt 0:01:02]} (28... Rxc1 {keeps more tension.} 29. Rxc1 exd5 30. Rd1 Bf6) 29. Qxd5 {[%emt 0:00:17]} exd5 {[%emt 0:00:02]} 30. Rxc8 {[%emt 0:00:07]} Rxc8 {[%emt 0:00:06]} 31. Bc3 {[%emt 0:00:02]} Bxc3 {[%emt 0:00:19]} 32. bxc3 $15 {[%emt 0:00:06][%mdl 4096] Endgame KR-KR} Rd8 {[%emt 0:02:33]} 33. Rd4 {[%emt 0:00:04]} (33. a5 $11 {remains equal.}) 33... Kg8 {[%emt 0:00:12] White is now going downhill.} 34. c4 {[%emt 0:00:13]} Kf7 {[%emt 0:00:05]} 35. cxd5 {[%emt 0:00:09]} Ke7 {[%emt 0:00:09]} 36. g4 {[%emt 0:00:32] [#]} (36. Kf1 $17 {was worth a try.}) 36... fxg4 $1 $19 {[%emt 0:02:12]} 37. Rxg4 {[%emt 0:00:04]} g6 {[%emt 0:00:24]} 38. Rh4 {[%emt 0:00:02]} h5 {[%emt 0:00:37] Threatens to win with ...Kd6.} 39. Re4+ {[%emt 0:00:03]} Kd6 {[%emt 0:00:40]} 40. Re6+ {[%emt 0:00:00]} Kc5 {[%emt 0:00:00]} 41. Rc6+ $2 {[%emt 0:05:55]} (41. Rxg6 Rxd5 42. f4) 41... Kb4 {[%emt 0:10:19] Black is clearly winning.} 42. Rc7 {[%emt 0:00:11]} (42. Kg2 $142 Rxd5 43. Rxg6) 42... Kxa4 {[%emt 0:02:04]} 43. Rxa7+ {[%emt 0:00:07]} Kb5 {[%emt 0:03:04]} 44. Rg7 {[%emt 0:01:18]} Rd6 {[%emt 0:01:40]} 45. Kg2 {[%emt 0:00:23]} (45. Rc7 $142 Rxd5 46. Kg2) 45... Kc4 {[%emt 0:00:31]} 46. Kf3 {[%emt 0:00:07]} Kxd5 {[%emt 0:00:48]} 47. Kf4 {[%emt 0:00:08]} b5 {[%emt 0:00:41] Hoping for ...b4.} 48. Rb7 {[%emt 0:00:09] Weighted Error Value: White=0.52/Black=0.13 (very precise)} 0-1

[Event "Reykjavik Open 2022"]
[Site "Reykjavik"]
[Date "2022.04.09"]
[Round "5.11"]
[White "Peng, Li Min"]
[Black "De Wachter, Matthias"]
[Result "1/2-1/2"]
[ECO "C27"]
[WhiteElo "2498"]
[BlackElo "2322"]
[Annotator "TA"]
[PlyCount "55"]
[EventDate "2022.04.06"]
[EventCountry "ISL"]
[SourceTitle "playchess.com"]
[Source "ChessBase"]
[SourceQuality "1"]
[TimeControl "40/5400+30:1800+30"]

{[%evp 9,55,-15,-8,-44,-31,-23,-31,-48,-43,-58,-45,-54,-42,-48,-41,-60,-66,-82,-78,-85,-52,-56,-31,-44,-42,-49,-32,-44,-38,-39,-37,-35,-42,-98,-72,-195,-178,-201,-172,-245,-214,-260,-205,-203,0,-278,-206,-191]} 1. e4 {[%emt 0:12:23]} e5 {[%emt 0:00:52]} 2. Nc3 {[%emt 0:01:23]} Nf6 {[%emt 0:00:24]} 3. Bc4 {[%emt 0:00:14]} Nxe4 {[%emt 0:06:01]} 4. Qh5 {[%emt 0:01:48]} Nd6 {[%emt 0:01:29]} 5. Bb3 {[%emt 0:00:03]} Be7 $1 {[%emt 0:03:21]} 6. f4 {[%emt 0:00:07] C27: Vienna Game: 2...Nf6 3 Bc4 Nxe4.} exf4 {[%emt 0:09:22]} 7. d4 {[%emt 0:00:27]} O-O {[%emt 0:36:18]} 8. Bxf4 {[%emt 0:00:14] Black is slightly better.} Ne8 {[%emt 0:01:47]} 9. O-O-O {[%emt 0:23:36]} Nf6 {[%emt 0:00:59]} (9... a5 {is interesting.} 10. a3 a4 11. Ba2 d6) 10. Qf3 {[%emt 0:00:11]} d6 {[%emt 0:02:33][%cal Bd7d6,Bd6d5][%mdl 32]} 11. h3 {[%emt 0:06:07]} c6 {[%emt 0:02:17]} 12. g4 {[%emt 0:00:57]} d5 {[%emt 0:00:50]} 13. g5 {[%emt 0:00:54]} Ne8 {[%emt 0:00:59]} 14. h4 {[%emt 0:00:51]} Be6 {[%emt 0:05:49]} 15. Nge2 {[%emt 0:00:21]} b5 {[%emt 0:05:37][%cal Bb7b5,Bb5b4][%mdl 32]} 16. Rdg1 {[%emt 0:00:01]} Nd7 {[%emt 0:01:01] [#]} 17. h5 $146 {[%emt 0:00:13]} ({Predecessor:} 17. Nd1 b4 18. c3 Nd6 19. Bxd6 Bxd6 20. Bc2 Rb8 21. Nf4 Bxf4+ 22. Qxf4 bxc3 23. bxc3 c5 24. h5 cxd4 25. Qxd4 {1-0 (32) Beerdsen,T (2468)-Schulze,L (2252) Berlin 2021}) 17... a5 {[%emt 0:01:52] Hoping for ...a4.} 18. a4 $1 {[%emt 0:01:11]} b4 {[%emt 0:00:19]} 19. Nd1 {[%emt 0:00:45]} c5 $36 {[%emt 0:02:07][%cal Bc6c5,Bc5c4,Bc4c3][%mdl 2080] Black has the initiative.} 20. Ne3 {[%emt 0:08:32]} ({But not} 20. Bxd5 Ne5 $1 {[%mdl 512]} 21. dxe5 Bxd5 $17) 20... c4 {[%emt 0:00:51]} 21. Ba2 {[%emt 0:00:02]} ({Better is} 21. Bxc4 $1 $15 dxc4 22. d5) 21... Nb6 $17 {[%emt 0:01:07]} 22. Bb1 {[%emt 0:00:05] [#]} (22. g6 $17) 22... c3 $1 $19 {[%emt 0:00:56]} ({Stronger than} 22... Nxa4 23. Qg2) 23. b3 {[%emt 0:01:24]} Ra7 {[%emt 0:02:49]} 24. Kd1 {[%emt 0:00:11]} (24. g6 $142) 24... Bd6 {[%emt 0:01:34]} 25. Qg3 {[%emt 0:03:23]} Qb8 {[%emt 0:01:18]} 26. Qh4 {[%emt 0:00:28]} Qd8 $2 {[%emt 0:04:43]} (26... f6 $19 {Strongly threatening ...Bc8.} 27. Rf1 fxg5 28. Qxg5 Raf7 29. Bxd6 Nxd6 30. Rxf7 Nxf7) 27. Qh2 $2 {[%emt 0:00:01][%mdl 8192]} (27. Qg3 $1 $11 {and White has nothing to worry.}) 27... Qe7 {[%emt 0:01:35]} 28. Qf2 {[%emt 0:10:08] Weighted Error Value: White=0.42/Black=0.19 (very precise)} 1/2-1/2

[Event "Reykjavik Open 2022"]
[Site "Reykjavik"]
[Date "2022.04.09"]
[Round "5.12"]
[White "Fantinel, Thibault"]
[Black "Stefansson, Vignir Vatnar"]
[Result "1/2-1/2"]
[ECO "B52"]
[WhiteElo "2376"]
[BlackElo "2484"]
[Annotator "TA"]
[PlyCount "123"]
[EventDate "2022.04.06"]
[EventCountry "ISL"]
[SourceTitle "playchess.com"]
[Source "ChessBase"]
[SourceQuality "1"]
[TimeControl "40/5400+30:1800+30"]

{[%evp 12,123,15,19,24,20,20,9,13,13,53,16,13,18,21,14,35,24,87,67,62,25,22,22,19,28,30,33,35,19,14,0,20,6,23,8,11,10,22,16,12,16,29,-10,60,35,44,41,54,9,13,1,16,10,9,9,9,9,8,8,8,10,8,8,69,66,68,0,0,0,0,0,0,0,0,0,0,0,0,0,0,0,0,0,0,0,0,0,0,0,0,0,0,0,0,0,0,0,0,0,0,0,0,0,0,0,0,0,0,0,0,0,0,0]} 1. e4 {[%emt 0:01:48]} c5 {[%emt 0:00:33]} 2. Nf3 {[%emt 0:00:06]} d6 {[%emt 0:00:19]} 3. Bb5+ {[%emt 0:01:33]} Bd7 {[%emt 0:01:12]} 4. Bxd7+ {[%emt 0:00:23]} Nxd7 {[%emt 0:00:20]} 5. O-O {[%emt 0:00:33]} Ngf6 {[%emt 0:00:09]} 6. Qe2 {[%emt 0:00:34]} e6 {[%emt 0:00:12]} 7. c4 {[%emt 0:06:08]} Rc8 {[%emt 0:02:09] 7...Ne5 is a critical line. B52: Sicilian: Moscow Variation with 3...Bd7.} 8. d4 {[%emt 0:03:24]} cxd4 {[%emt 0:00:06]} 9. Nxd4 {[%emt 0:00:03]} Qa5 {[%emt 0:00:14]} 10. Rd1 {[%emt 0:05:27]} Be7 {[%emt 0:04:00]} 11. b3 {[%emt 0:03:14]} a6 {[%emt 0:01:38]} 12. Bb2 {[%emt 0:00:38]} O-O {[%emt 0:03:16]} 13. Nc3 {[%emt 0:01:25] [#]} Ne5 $146 {[%emt 0:06:23]} ({Predecessor:} 13... Rc7 14. Qd2 Qh5 15. Re1 Rfc8 16. Rad1 Bf8 17. h3 g6 18. Re2 Bg7 19. Nf3 Rc6 20. Nd4 R6c7 21. Nf3 Rc6 22. Nd4 R6c7 {½-½ (22) Vitiugov,N (2726)-Yu,Y (2713) Berlin 2022}) 14. Rac1 {[%emt 0:02:29]} g5 {[%emt 0:07:07]} (14... Rfd8 $11) 15. Qd2 $16 {[%emt 0:05:30][%cal Oc3d5]} Ng6 {[%emt 0:02:45]} 16. Nd5 {[%emt 0:07:23]} Qxd2 {[%emt 0:00:06]} 17. Nxf6+ {[%emt 0:04:07]} Bxf6 {[%emt 0:00:06]} 18. Rxd2 {[%emt 0:00:02]} g4 {[%emt 0:03:27]} 19. Rcd1 {[%emt 0:00:58]} Bg5 {[%emt 0:01:37]} 20. Rc2 {[%emt 0:00:56]} Rfd8 {[%emt 0:01:45]} 21. Bc1 {[%emt 0:05:48][%cal Bb2c1,Bc1e3,Be3b6][%mdl 32]} Bf6 {[%emt 0:01:19][%cal Ob7b5]} 22. Be3 {[%emt 0:03:24]} Kf8 {[%emt 0:04:42]} 23. Rcd2 {[%emt 0:02:31]} Ke7 {[%emt 0:04:24]} 24. Ne2 {[%emt 0:02:14]} b5 {[%emt 0:09:26]} 25. Bb6 {[%emt 0:07:21]} Rd7 {[%emt 0:00:26]} 26. c5 {[%emt 0:01:03]} Be5 {[%emt 0:01:36]} 27. b4 {[%emt 0:03:08]} Nf4 {[%emt 0:08:07]} ({Black should play} 27... Nf8 $11) 28. Nxf4 {[%emt 0:06:07]} Bxf4 {[%emt 0:00:07]} 29. Rd3 {[%emt 0:00:04]} Ke8 {[%emt 0:04:36]} 30. f3 {[%emt 0:05:17]} ({Reject} 30. cxd6 {[#]} Rxd6 $1 31. g3 (31. Rxd6 Bxd6 32. a3 Be5 $17) 31... Rxb6 $11) 30... gxf3 {[%emt 0:03:46]} 31. gxf3 {[%emt 0:00:04]} (31. g3 {feels hotter.} Be5 32. Kf1 h5 33. Kf2) 31... Rc6 {[%emt 0:01:56]} 32. Kg2 {[%emt 0:00:28]} f6 {[%emt 0:02:33]} 33. Ra3 {[%emt 0:04:21]} dxc5 {[%emt 0:12:20]} 34. Rxd7 {[%emt 0:00:05]} Kxd7 {[%emt 0:00:06]} 35. bxc5 {[%emt 0:01:09]} Bc7 {[%emt 0:01:44]} 36. Rxa6 {[%emt 0:01:03]} Bxb6 {[%emt 0:00:21]} 37. cxb6 $11 {[%emt 0:00:06][%mdl 4096] [#] Endgame And now b7 would win. KR-KR} Rc2+ {[%emt 0:00:08]} ({Better is} 37... Kc8 $1 $11) 38. Kg3 $14 {[%emt 0:03:21]} Kc6 {[%emt 0:00:07]} 39. b7+ {[%emt 0:04:39]} (39. a4 $1 $14 b4 40. Ra5) 39... Kxb7 $11 {[%emt 0:00:05] The position is equal.} 40. Rxe6 {[%emt 0:00:00]} Rxa2 {[%emt 0:00:00]} 41. Rxf6 {[%emt 0:00:37]} b4 {[%emt 0:00:25] White must now prevent ...b3.} 42. Rd6 {[%emt 0:01:23] Hoping for Rd4.} b3 {[%emt 0:06:06]} 43. Rd3 {[%emt 0:02:50]} Ra3 {[%emt 0:01:14] Threatens to win with ...b2.} (43... b2 $5 44. Rb3+ Kc6 $11) 44. Rd1 {[%emt 0:05:15] Rb1 is the strong threat.} b2 {[%emt 0:00:37] ( -> ...Ra1)} 45. Rb1 {[%emt 0:00:04]} Rb3 {[%emt 0:00:05]} 46. Kf4 {[%emt 0:01:00]} Kc6 {[%emt 0:00:58]} 47. Ke5 {[%emt 0:00:29]} Kd7 {[%emt 0:00:31]} 48. f4 {[%emt 0:00:26]} Ke7 {[%emt 0:00:21]} 49. Kf5 {[%emt 0:01:44]} Rb5+ {[%emt 0:00:37]} 50. e5 {[%emt 0:00:50]} Rb4 {[%emt 0:00:04]} 51. h4 {[%emt 0:01:15]} Kf7 {[%emt 0:00:46]} 52. Kg5 {[%emt 0:00:28]} Ke6 {[%emt 0:00:27]} 53. Kg4 {[%emt 0:03:28]} Rb3 {[%emt 0:02:05]} 54. Kg5 $1 {[%emt 0:00:38]} Rb7 {[%emt 0:01:16]} 55. Kg4 {[%emt 0:00:37]} Rb8 {[%emt 0:03:21]} 56. Kg5 {[%emt 0:00:18]} Rb6 {[%emt 0:00:37]} 57. Kh6 {[%emt 0:01:22]} Rb7 {[%emt 0:00:31]} 58. Kg5 {[%emt 0:00:05]} Rb4 {[%emt 0:09:42]} 59. Kg4 {[%emt 0:00:41]} Kf7 {[%emt 0:00:54]} 60. Kg5 {[%emt 0:01:13]} Ke6 {[%emt 0:10:21]} 61. Kg4 {[%emt 0:00:56]} Rb6 {[%emt 0:06:29]} 62. Kg5 {[%emt 0:00:13] Weighted Error Value: White=0.07 (flawless) /Black=0.10 (very precise)} 1/2-1/2

[Event "Reykjavik Open 2022"]
[Site "Reykjavik"]
[Date "2022.04.09"]
[Round "5.13"]
[White "Rosen, Eric"]
[Black "Beerdsen, Thomas"]
[Result "0-1"]
[ECO "A45"]
[WhiteElo "2356"]
[BlackElo "2508"]
[Annotator "TA"]
[PlyCount "138"]
[EventDate "2022.04.06"]
[EventCountry "ISL"]
[SourceTitle "playchess.com"]
[Source "ChessBase"]
[SourceQuality "1"]
[TimeControl "40/5400+30:1800+30"]

{[%evp 9,138,-3,0,-15,-8,-14,-14,-15,-8,-22,0,-8,-5,-26,-15,-16,-14,-47,-18,-21,-32,-30,-27,-29,-19,-20,-13,-20,-10,-16,0,0,0,0,17,6,21,-153,-147,-168,-103,-146,-143,-167,-186,-201,-150,-128,-76,-76,-84,-78,-90,-85,-81,-76,-90,-94,-56,-70,-50,-83,-64,-86,-50,-124,-124,-218,-222,-285,-297,-264,-269,-267,-229,-217,-212,-363,-348,-433,-472,-447,-470,-468,-468,-450,-383,-421,-427,-358,-381,-390,-374,-535,-524,-447,-410,-929,-870,-938,-847,-740,-674,-670,-494,-739,-562,-9688,-7002,-5736,-4970,-1736,-256,-29968,-29969,-29969,-29970,-29963,-118,-118,-118,-29975,-29976,-29974,-29977,-29980,-29981,-29983,-29984,-29987,-29984]} 1. d4 {[%emt 0:00:14]} Nf6 {[%emt 0:00:13]} 2. Bf4 {[%emt 0:00:28]} c6 {[%emt 0:00:17]} 3. Nd2 {[%emt 0:01:35]} Qb6 {[%emt 0:00:12]} 4. Ngf3 {[%emt 0:01:20]} Nh5 {[%emt 0:00:15] [#]} 5. Bxb8 $146 {[%emt 0:09:41]} ({Predecessor:} 5. Bg5 h6 6. Nc4 Qc7 7. Bd2 Nf6 8. g3 Ne4 9. Bh3 Nxd2 10. Qxd2 e6 11. O-O {½-½ (57) Rosso,P (2390)-Dutra,A (2486) LSS email 2014}) 5... Rxb8 {[%emt 0:01:12]} 6. Rb1 {[%emt 0:03:15] A45: Trompowsky Attack.} d6 {[%emt 0:07:27]} 7. e3 {[%emt 0:02:08]} g6 {[%emt 0:01:52]} 8. Be2 {[%emt 0:06:26] The position is equal.} Bg7 {[%emt 0:06:54]} 9. O-O {[%emt 0:01:16]} c5 {[%emt 0:04:36][%cal Rc5d4]} 10. c3 {[%emt 0:03:29]} O-O {[%emt 0:02:56]} 11. Qa4 {[%emt 0:06:13]} Qc7 {[%emt 0:06:49]} 12. Rfe1 {[%emt 0:05:47]} (12. Qxa7 Bf5 13. Qa4 Bxb1 14. Rxb1 Nf6 $17) 12... Nf6 {[%emt 0:04:21][%cal Bh5f6,Bf6d7,Bd7b6][%mdl 32]} 13. e4 {[%emt 0:07:25]} (13. Qxa7 Bf5 14. dxc5 dxc5 $17) 13... Bd7 {[%emt 0:06:21]} 14. Bb5 {[%emt 0:03:01]} a6 {[%emt 0:01:53]} 15. Bxd7 {[%emt 0:00:48]} Nxd7 {[%emt 0:00:07]} 16. Nf1 {[%emt 0:03:01]} Rfc8 {[%emt 0:11:35]} 17. Ne3 {[%emt 0:01:47]} cxd4 {[%emt 0:07:58]} 18. cxd4 {[%emt 0:01:25]} Nb6 {[%emt 0:05:04]} 19. Qa5 {[%emt 0:02:57]} Qc6 {[%emt 0:01:16]} 20. b3 {[%emt 0:02:02]} Rc7 {[%emt 0:04:41]} 21. h4 {[%emt 0:04:07]} Rbc8 {[%emt 0:05:42]} 22. a4 {[%emt 0:01:14]} e6 {[%emt 0:01:14]} 23. Re2 $2 {[%emt 0:10:36] [#]} (23. Rbc1 $11 Qd7 24. Rcd1) 23... Qxe4 $1 $17 {[%emt 0:03:24]} 24. Rbe1 {[%emt 0:00:49] [#]} (24. Ree1 Nd7) 24... Qc6 {[%emt 0:09:00]} (24... Bxd4 25. Nd1 (25. Nc2 Qd5 $11) 25... Qf5 26. Qxf5 Bxf2+ 27. Nxf2 $11) ({Black should try} 24... Nd7 $1 $19 25. Qg5 Bf8) 25. Qg5 {[%emt 0:05:45]} h6 {[%emt 0:01:19]} 26. Qg3 {[%emt 0:00:44]} Nd5 {[%emt 0:03:03]} 27. Rc2 {[%emt 0:03:15]} Qd7 {[%emt 0:01:02]} 28. Rxc7 {[%emt 0:00:02]} Rxc7 {[%emt 0:00:26]} (28... Nxc7 $142 29. Nc4 Rd8) 29. Nxd5 {[%emt 0:02:42]} exd5 {[%emt 0:00:06]} 30. Qf4 {[%emt 0:00:09]} Rc3 {[%emt 0:00:57]} 31. Re3 {[%emt 0:02:17]} Rc1+ {[%emt 0:01:23]} 32. Kh2 {[%emt 0:01:56]} Rc2 {[%emt 0:00:16]} 33. h5 {[%emt 0:03:47]} gxh5 {[%emt 0:02:16]} (33... Rxf2 34. hxg6 Rf1 35. gxf7+ Qxf7 36. Qxd6 $11) 34. Ne1 {[%emt 0:02:11]} Rc8 {[%emt 0:00:39][%cal Bc2c8,Bc8e8,Be8e4,Be4h4][%mdl 32]} (34... Rc7 $5 {[%cal Rg8h7]}) 35. Rg3 {[%emt 0:01:21]} Kh8 {[%emt 0:00:22]} 36. Nd3 {[%emt 0:02:06]} Re8 {[%emt 0:00:38]} 37. Qf3 {[%emt 0:00:14]} ({White should play} 37. Re3 $15) 37... Re4 {[%emt 0:00:32]} (37... Bxd4 38. Qxh5 Bg7 39. Rf3 $15) 38. Nf4 {[%emt 0:00:57]} (38. Qxh5 $17 {was necessary.} Qe6 39. Kg1) 38... Qf5 $19 {[%emt 0:00:31]} (38... Bxd4 39. Qxh5 Kh7 40. Rh3 $15) (38... Rxd4 39. Rxg7 Rxf4 40. Qxf4 Kxg7 41. Qd4+ Kg6 42. Qxd5) 39. Nxh5 {[%emt 0:00:58]} Rh4+ {[%emt 0:00:15]} 40. Rh3 {[%emt 0:00:00]} Qxf3 {[%emt 0:00:00]} 41. gxf3 {[%emt 0:00:33]} Rxd4 {[%emt 0:05:05][%mdl 4096] Endgame KRB-KRN} 42. f4 {[%emt 0:02:42]} Rd2 {[%emt 0:01:14]} 43. Re3 $2 {[%emt 0:07:03]} (43. Kg2 {was worth a try.}) 43... Bd4 {[%emt 0:02:46]} ({But not} 43... Rxf2+ $2 44. Kg3 Rb2 45. Rd3 $19) 44. Re7 {[%emt 0:01:31]} Kh7 {[%emt 0:00:32]} ({Inferior is} 44... Rxf2+ 45. Kg3 $17) 45. Rxb7 {[%emt 0:06:10]} Kg6 {[%emt 0:01:55]} 46. Ng3 {[%emt 0:00:06]} Rxf2+ {[%emt 0:00:27]} 47. Kh3 {[%emt 0:00:44]} Rxf4 {[%emt 0:04:35]} 48. Ne2 {[%emt 0:00:39]} Re4 {[%emt 0:00:06]} 49. Nxd4 {[%emt 0:00:53]} Rxd4 {[%emt 0:00:06] KR-KR} 50. Rb6 {[%emt 0:00:06]} Kf5 {[%emt 0:05:56]} (50... Rd3+ $2 51. Kg2 $19) 51. Rxd6 {[%emt 0:00:59]} (51. Rxa6 {keeps fighting.} Ke5 52. Rb6) 51... f6 {[%emt 0:01:10]} 52. Kg2 {[%emt 0:05:05]} Ke5 {[%emt 0:03:13]} 53. Rxa6 {[%emt 0:00:27]} (53. Rd7 $142) 53... Rb4 {[%emt 0:00:11]} 54. Ra8 {[%emt 0:00:25]} Rxb3 {[%emt 0:00:20]} 55. Re8+ {[%emt 0:01:28]} Kf5 {[%emt 0:02:10] Hoping for ...Ra3.} 56. Rd8 {[%emt 0:00:29]} Ke4 {[%emt 0:00:49]} 57. Rh8 {[%emt 0:01:41]} (57. Re8+ $142 Kf4 58. Rd8) 57... Ra3 {[%emt 0:05:43]} 58. Rxh6 {[%emt 0:00:17]} f5 {[%emt 0:00:06]} 59. Ra6 {[%emt 0:04:06]} d4 {[%emt 0:00:34]} 60. Kf2 {[%emt 0:00:38]} Kd3 $2 {[%emt 0:00:40]} (60... d3 {aiming for ...Ra1.} 61. Ke1 Ra1+ 62. Kd2 Ra2+ 63. Kd1 f4 64. Re6+ Kd4 65. Rd6+ Ke3 66. Re6+ Kf2) 61. Ra8 $2 {[%emt 0:00:54]} (61. a5 $19) 61... Kc2 {[%emt 0:00:54]} 62. a5 {[%emt 0:00:55]} d3 {[%emt 0:00:39]} 63. a6 {[%emt 0:01:07]} d2 $2 {[%emt 0:01:10]} (63... Kd1 {mates} 64. a7 d2 65. Kg2 Ra4 66. Kf3 Rd4 67. Kg3 Rg4+ 68. Kh3 Rg7 69. Kh4 Re7 70. Kg5 Ke2 71. Rg8 Rxa7 72. Re8+ Kd3 73. Rd8+ Ke3 74. Re8+ Kf3 75. Rd8 Ke3 76. Re8+ Kf2 77. Rd8 Ke1 78. Re8+ Kd1 79. Kf4 Rd7 80. Kxf5 Kc1 81. Rc8+ Kb2 82. Rb8+ Kc2 83. Rc8+ Kd3 84. Ke6 Rd4 85. Rf8 d1=Q 86. Rf5 Qh1 87. Ra5 Qh6+ 88. Ke7 Qd6+ 89. Kf7 Rf4+ 90. Rf5 Rxf5+ 91. Kg7 Qf6+ 92. Kg8 Qg6+ 93. Kh8 Rh5#) 64. Rc8+ $17 {[%emt 0:00:23]} Kd1 {[%emt 0:00:27]} 65. Ra8 $2 {[%emt 0:00:50][%mdl 8192] This move loses the game for White.} (65. Rc6 $17) 65... Rc3 {[%emt 0:01:09] Black mates.} 66. Rd8 {[%emt 0:01:43] [#]} Rc7 $1 {[%emt 0:00:39]} ({Not} 66... Ra3 67. Rd6 $17) 67. Ke3 {[%emt 0:02:03]} Ke1 {[%emt 0:00:36]} 68. a7 {[%emt 0:00:32]} Rxa7 {[%emt 0:00:20]} 69. Rh8 {[%emt 0:00:30]} Ra3+ {[%emt 0:00:05] Weighted Error Value: White=0.51/Black=0.26 (precise)} 0-1